[Event "105th British-ch 2018"]
[Site "Hull"]
[Date "2018.07.30"]
[Round "3"]
[White "Miller, Dominic"]
[Black "Jarmany, John"]
[Result "*"]
[ECO "B13"]
[WhiteElo "2017"]
[BlackElo "2110"]
[Annotator "NA"]
[PlyCount "51"]
[EventDate "2018.07.28"]
[EventType "swiss"]
[EventCountry "GBR"]
[SourceTitle "playchess.com"]
[Source "ChessBase"]
[SourceQuality "1"]
[TimeControl "40/5400+30:1800+30"]

1. e4 {[%emt 0:00:01]} c6 {[%emt 0:00:04]} 2. d4 {[%emt 0:00:08]} d5 {[%emt 0:00:04]} 3. exd5 {[%emt 0:00:09]} cxd5 {[%emt 0:00:04]} 4. c4 {[%emt 0:00:05]} Nf6 {[%emt 0:00:03]} 5. Nc3 {[%emt 0:00:07]} Nc6 {[%emt 0:00:06]} 6. Nf3 {[%emt 0:03:05]} Bg4 {[%emt 0:00:05]} 7. cxd5 {[%emt 0:02:56]} Nxd5 {[%emt 0:00:13]} 8. Bb5 {[%emt 0:03:50]} Nxc3 {[%emt 0:14:10]} 9. bxc3 {[%emt 0:00:06]} Qd5 {[%emt 0:02:51]} 10. c4 {[%emt 0:08:17]} Qe4+ {[%emt 0:01:34]} 11. Be3 {[%emt 0:03:39]} O-O-O {[%emt 0:11:17]} 12. Bxc6 {[%emt 0:01:35]} Qxc6 {[%emt 0:25:48]} 13. Ne5 {[%emt 0:00:11]} Bxd1 {[%emt 0:00:06]} 14. Nxc6 {[%emt 0:00:03]} bxc6 {[%emt 0:00:04]} 15. Rxd1 {[%emt 0:00:15]} e6 {[%emt 0:01:41]} 16. Ke2 {[%emt 0:00:43]} Rd7 {[%emt 0:02:52]} 17. Rd3 {[%emt 0:01:45]} Be7 {[%emt 0:02:42]} 18. Rb1 {[%emt 0:02:02]} Rhd8 {[%emt 0:12:42]} 19. Rdb3 {[%emt 0:09:40]} Rc7 {[%emt 0:00:06]} 20. Bf4 {[%emt 0:00:18]} Bf6 {[%emt 0:12:40]} 21. Rb8+ {[%emt 0:02:03]} Kd7 {[%emt 0:00:04]} 22. Bxc7 {[%emt 0:00:05]} Kxc7 {[%emt 0:00:07]} 23. R1b7+ {[%emt 0:00:06]} Kd6 {[%emt 0:00:07]} 24. c5+ {[%emt 0:00:09]} Kd5 {[%emt 0:00:06]} 25. Rxd8+ {[%emt 0:00:03]} Bxd8 {[%emt 0:00:04]} 26. Rd7+ {[%emt 0:00:03]} *

[Event "105th British-ch 2018"]
[Site "Hull"]
[Date "2018.07.30"]
[Round "3"]
[White "Young, Daniel J"]
[Black "Krzyzanowski, Patryk"]
[Result "1-0"]
[ECO "B27"]
[WhiteElo "1962"]
[BlackElo "2087"]
[Annotator "NA"]
[PlyCount "59"]
[EventDate "2018.07.28"]
[EventType "swiss"]
[EventCountry "GBR"]
[SourceTitle "playchess.com"]
[Source "ChessBase"]
[SourceQuality "1"]
[TimeControl "40/5400+30:1800+30"]

1. e4 {[%emt 0:00:01]} c5 {[%emt 0:00:16]} 2. Nf3 {[%emt 0:00:14]} g6 {[%emt 0:00:11]} 3. d4 {[%emt 0:00:22]} cxd4 {[%emt 0:00:18]} 4. Qxd4 {[%emt 0:00:19]} Nf6 {[%emt 0:00:17]} 5. Nc3 {[%emt 0:00:35]} Nc6 {[%emt 0:01:37]} 6. Qa4 {[%emt 0:00:26]} Ng4 {[%emt 0:15:39]} 7. h3 {[%emt 0:26:50]} Nge5 {[%emt 0:02:37]} 8. Nxe5 {[%emt 0:01:04]} Nxe5 {[%emt 0:00:09]} 9. f4 {[%emt 0:00:59]} Nc6 {[%emt 0:00:08]} 10. Be3 {[%emt 0:01:25]} Bh6 {[%emt 0:08:49]} 11. O-O-O {[%emt 0:06:46]} O-O {[%emt 0:21:49]} 12. g4 {[%emt 0:13:23]} Rb8 {[%emt 0:03:02]} 13. g5 {[%emt 0:06:00]} Bg7 {[%emt 0:00:13]} 14. h4 {[%emt 0:05:55]} a6 {[%emt 0:00:28]} 15. h5 {[%emt 0:02:54]} b5 {[%emt 0:00:27]} 16. Qb3 {[%emt 0:01:09]} d6 {[%emt 0:05:22]} 17. hxg6 {[%emt 0:02:04]} hxg6 {[%emt 0:00:13]} 18. Nd5 {[%emt 0:08:05]} Bg4 {[%emt 0:02:15]} 19. Rd2 {[%emt 0:01:24]} Na5 {[%emt 0:05:58]} 20. Qb4 {[%emt 0:00:47]} Nc4 {[%emt 0:00:32]} 21. Bxc4 {[%emt 0:00:34]} bxc4 {[%emt 0:00:12]} 22. Qxb8 {[%emt 0:00:18]} c3 {[%emt 0:23:58]} 23. Rdh2 {[%emt 0:05:46]} cxb2+ {[%emt 0:03:08]} 24. Kb1 {[%emt 0:00:25]} Bf3 {[%emt 0:01:10]} 25. Qxd8 {[%emt 0:00:39]} Rxd8 {[%emt 0:00:06]} 26. Nxe7+ {[%emt 0:06:47]} Kf8 {[%emt 0:00:09]} 27. Nd5 {[%emt 0:00:25]} Bxh1 {[%emt 0:01:27]} 28. Rxh1 {[%emt 0:00:14]} Re8 {[%emt 0:00:12]} 29. Nf6 {[%emt 0:00:33]} Re6 {[%emt 0:01:47]} 30. Bd4 {[%emt 0:01:06]} 1-0

[Event "105th British-ch 2018"]
[Site "Hull"]
[Date "2018.07.30"]
[Round "3"]
[White "De Coverly, Roger D"]
[Black "Ratnesan, Ranesh"]
[Result "1-0"]
[ECO "B25"]
[WhiteElo "1920"]
[BlackElo "2073"]
[Annotator "NA"]
[PlyCount "63"]
[EventDate "2018.07.28"]
[EventType "swiss"]
[EventCountry "GBR"]
[SourceTitle "playchess.com"]
[Source "ChessBase"]
[SourceQuality "1"]
[TimeControl "40/5400+30:1800+30"]

1. e4 {[%emt 0:00:04]} c5 {[%emt 0:00:09]} 2. Nf3 {[%emt 0:00:04]} d6 {[%emt 0:00:07]} 3. g3 {[%emt 0:00:04]} Nf6 {[%emt 0:00:26]} 4. d3 {[%emt 0:00:12]} Nc6 {[%emt 0:00:39]} 5. Bg2 {[%emt 0:00:08]} g6 {[%emt 0:01:21]} 6. O-O {[%emt 0:00:11]} Bg7 {[%emt 0:00:12]} 7. Nc3 {[%emt 0:00:29]} O-O {[%emt 0:01:16]} 8. h3 {[%emt 0:00:16]} Rb8 {[%emt 0:01:52]} 9. a4 {[%emt 0:00:18]} a6 {[%emt 0:00:36]} 10. Be3 {[%emt 0:01:08]} e5 {[%emt 0:05:48]} 11. Qd2 {[%emt 0:02:07]} b5 {[%emt 0:02:29]} 12. axb5 {[%emt 0:01:10]} axb5 {[%emt 0:00:15]} 13. Bh6 {[%emt 0:01:23]} Nd4 {[%emt 0:12:16]} 14. Nxd4 {[%emt 0:00:55]} cxd4 {[%emt 0:00:45]} 15. Ne2 {[%emt 0:00:19]} Bb7 {[%emt 0:04:59]} 16. Bxg7 {[%emt 0:01:46]} Kxg7 {[%emt 0:00:23]} 17. f4 {[%emt 0:01:41]} Qb6 {[%emt 0:08:34]} 18. Rf2 {[%emt 0:01:43]} Nd7 {[%emt 0:08:20]} 19. Raf1 {[%emt 0:04:07]} f6 {[%emt 0:07:59]} 20. g4 {[%emt 0:05:07]} b4 {[%emt 0:08:00]} 21. b3 {[%emt 0:01:44]} Bc6 {[%emt 0:08:19]} 22. Ng3 {[%emt 0:02:09]} Qd8 {[%emt 0:02:01]} 23. h4 {[%emt 0:06:28]} Qe7 {[%emt 0:07:15]} 24. h5 {[%emt 0:05:49]} Kg8 {[%emt 0:00:41]} 25. Bh3 {[%emt 0:08:51]} Nc5 {[%emt 0:01:42]} 26. g5 {[%emt 0:02:04]} fxg5 {[%emt 0:01:19]} 27. f5 {[%emt 0:01:15]} Bd7 {[%emt 0:06:01]} 28. f6 {[%emt 0:02:13]} Qf7 {[%emt 0:00:45]} 29. Bxd7 {[%emt 0:00:59]} Qxd7 {[%emt 0:01:38]} 30. f7+ {[%emt 0:01:07]} Kg7 {[%emt 0:01:25]} 31. Qxg5 {[%emt 0:01:44]} Qd8 {[%emt 0:02:07]} 32. Rf6 {[%emt 0:00:28]} 1-0

[Event "105th British-ch 2018"]
[Site "Hull"]
[Date "2018.07.31"]
[Round "4"]
[White "TAN, Justin Hy"]
[Black "Hebden, Mark L"]
[Result "*"]
[ECO "C84"]
[WhiteElo "2481"]
[BlackElo "2423"]
[Annotator "ChessBase"]
[PlyCount "119"]
[EventDate "2018.07.28"]
[EventType "swiss"]
[EventCountry "GBR"]
[SourceTitle "playchess.com"]
[Source "ChessBase"]
[SourceQuality "1"]
[TimeControl "40/5400+30:1800+30"]

1. e4 {[%emt 0:00:00]} e5 {[%emt 0:00:00]} 2. Nf3 {[%emt 0:00:00]} Nc6 {[%emt 0:00:14]} 3. Bb5 {[%emt 0:00:00]} a6 {[%emt 0:00:57]} 4. Ba4 {[%emt 0:00:00]} Nf6 {[%emt 0:00:12]} 5. O-O {[%emt 0:00:00]} Be7 {[%emt 0:00:25]} (5... Nxe4) 6. d3 {[%emt 0:00:45]} (6. Re1 {[%cal Gc2c3,Gd2d4]}) 6... b5 {[%emt 0:02:32]} 7. Bb3 {[%emt 0:00:03]} d6 {[%emt 0:00:27]} 8. a3 {[%emt 0:00:05]} O-O {[%emt 0:00:48]} 9. Nc3 {[%emt 0:00:23]} Qe8 {[%emt 0:14:23]} 10. Nd5 {[%emt 0:12:20]} Bd8 {[%emt 0:11:26]} 11. c3 {[%emt 0:04:23]} Na5 {[%emt 0:01:58]} 12. Bc2 {[%emt 0:12:10]} (12. Ba2) 12... Nxd5 {[%emt 0:09:26]} 13. exd5 {[%emt 0:00:03]} Bg4 {[%emt 0:00:16]} 14. a4 {[%emt 0:03:43]} Be7 {[%emt 0:06:32]} 15. axb5 {[%emt 0:14:47]} axb5 {[%emt 0:00:26]} 16. b4 {[%emt 0:11:29]} Nb7 {[%emt 0:00:08]} 17. Rxa8 {[%emt 0:00:03]} Qxa8 {[%emt 0:00:07]} 18. d4 {[%emt 0:01:12]} f5 {[%emt 0:02:58]} (18... exd4 19. Qd3 {[%csl Gh7][%cal Gf3d4]}) 19. h3 {[%emt 0:00:59]} Bh5 {[%emt 0:18:10]} (19... Bxf3 20. Qxf3 e4 {[%cal Gb7d8,Gd8f7,Gf3g3]} 21. Qe2 {[%csl Gb5]}) 20. dxe5 {[%emt 0:03:15]} dxe5 {[%emt 0:00:14]} 21. g4 {[%emt 0:03:33]} fxg4 {[%emt 0:01:24]} (21... e4 {[%cal Gf3d4]} 22. Nd4 {[%csl Gb5,Gf5,Gh5]}) (21... Bg6 22. Nxe5) 22. Nxe5 {[%emt 0:00:05]} Bd6 {[%emt 0:00:10]} 23. Qd3 {[%emt 0:01:43]} g6 {[%emt 0:00:15]} 24. hxg4 {[%emt 0:09:11]} (24. Nxg4) 24... Bxe5 {[%emt 0:00:58]} 25. gxh5 {[%emt 0:00:02]} Qc8 {[%emt 0:03:33]} (25... Qd8 {[%cal Gd8h4,Gg8h8]} 26. hxg6 Qh4 27. gxh7+ Kh8 {[%csl Gh7]}) 26. Qe4 {[%emt 0:03:44]} Qf5 {[%emt 0:00:52]} 27. Qxf5 {[%emt 0:01:34]} gxf5 {[%emt 0:00:07]} 28. Re1 {[%emt 0:08:39]} (28. Bd2 Nd6) 28... Bxc3 {[%emt 0:00:47]} 29. Re3 {[%emt 0:01:32]} Bd4 {[%emt 0:04:35]} (29... Bxb4 {[%csl Gf5,Gg3]}) 30. Re7 {[%emt 0:00:04]} Rf7 {[%emt 0:06:44]} 31. Rxf7 {[%emt 0:00:01]} Kxf7 {[%emt 0:00:07]} 32. Bxf5 {[%emt 0:00:02]} Kg8 {[%emt 0:01:02]} 33. Bh6 {[%emt 0:03:59]} Bg7 {[%emt 0:01:09]} 34. Bf4 {[%emt 0:00:53]} Nd6 {[%emt 0:00:13]} 35. Be6+ {[%emt 0:01:15]} Kf8 {[%emt 0:00:08]} 36. Be3 {[%emt 0:01:28]} Bc3 {[%emt 0:00:46]} 37. Bc5 {[%emt 0:00:24]} Kg7 {[%emt 0:00:08]} 38. f3 {[%emt 0:00:56]} Nb7 {[%emt 0:02:06]} 39. Be7 {[%emt 0:00:14]} Bf6 {[%emt 0:00:11]} 40. Bxf6+ {[%emt 0:02:50]} (40. h6+ Kg6) 40... Kxf6 {[%emt 0:00:02]} 41. f4 {[%emt 0:02:27]} Nd6 {[%emt 0:04:30]} (41... Kg7 42. Kf2 Kh6 43. Bg4 {[%csl Gc8][%cal Gf2d4,Gg4d7,Gd4c5]}) 42. Kf2 {[%emt 0:07:28]} (42. Kf1) 42... c5 {[%emt 0:00:11]} (42... Ne4+ 43. Ke3 Nc3 44. Kd4 {[%cal Gc3a2]} (44. Kd3 Na2) 44... Ne2+ 45. Kc5 Nxf4 46. Kxb5 Nxe6 (46... Nxh5 47. Kc6 {[%csl Gc7]}) 47. dxe6 Kxe6 48. Kc6 {[%csl Gb5,Gc7]}) 43. bxc5 {[%emt 0:00:11]} Ne4+ {[%emt 0:00:04]} 44. Ke3 {[%emt 0:00:02]} Nxc5 {[%emt 0:00:08]} 45. Bg8 {[%emt 0:00:34]} h6 {[%emt 0:01:16]} 46. Kd4 {[%emt 0:03:21]} Nb7 {[%emt 0:11:18]} (46... Nb3+ 47. Kc3 {[%csl Gb4]} Nc5 48. Kb4 (48. Bh7 {[%cal Gf6f5,Gc5e4]} Kg7 (48... Ke7 49. Kb4 Kd6) 49. Bg6 {[%csl Gd5,Gf4]}) 48... Nd3+ 49. Kxb5 Nxf4 50. d6 Nxh5 51. Kc6) 47. Bh7 {[%emt 0:01:11]} Ke7 {[%emt 0:01:07]} 48. Bd3 {[%emt 0:01:49]} b4 {[%emt 0:00:25]} 49. Ba6 {[%emt 0:01:21]} Nd6 {[%emt 0:01:08]} 50. Bd3 {[%emt 0:03:51]} b3 {[%emt 0:02:30]} (50... Z0 51. Kc5 {[%cal Gc5b4]} b3 52. Kb4 b2 53. Kc3 Ne8 54. Kxb2 Nf6 {[%csl Gd5,Gh5]}) 51. Kc3 (51. Ke5 b2 52. f5) 51... Ne8 52. Kxb3 (52. Be4 Nf6 53. Bf3 Kd6 54. Kxb3 Nxd5) 52... Nf6 {[%csl Gd5]} 53. Kc4 (53. Bc4 Kd6) 53... Nxh5 {[%csl Gf4]} 54. f5 Kd6 {[%cal Gh5f6]} 55. Kd4 Nf6 56. Be4 h5 57. Bf3 h4 {[%csl Gh2][%cal Gf6e7,Gd4h4,Gh4h2]} 58. Bg2 h3 59. Bf3 h2 60. Bg2 {[%cal Gf6g4,Gf6e8,Gf6g8]} *

[Event "105th British-ch 2018"]
[Site "Hull"]
[Date "2018.08.03"]
[Round "4"]
[White "McPhillips, Joseph"]
[Black "Young, Daniel J"]
[Result "1-0"]
[ECO "A00"]
[WhiteElo "2402"]
[BlackElo "1962"]
[Annotator "ChessBase"]
[PlyCount "153"]
[EventDate "2018.07.28"]
[EventType "swiss"]
[EventCountry "GBR"]
[SourceTitle "playchess.com"]
[Source "ChessBase"]
[SourceQuality "1"]
[TimeControl "40/5400+30:1800+30"]

1. b4 {[%emt 0:07:57]} e5 {[%emt 0:00:00]} 2. a3 {[%emt 0:00:21]} d5 {[%emt 0:00:19]} 3. d4 {[%emt 0:11:43]} e4 {[%emt 0:08:33]} 4. Bf4 {[%emt 0:03:41]} Nf6 {[%emt 0:02:09]} 5. e3 {[%emt 0:01:33]} Be7 {[%emt 0:04:54]} 6. c4 {[%emt 0:03:22]} Be6 {[%emt 0:04:38]} 7. Nd2 {[%emt 0:03:05]} a5 {[%emt 0:09:59]} 8. b5 {[%emt 0:01:32]} Nbd7 {[%emt 0:03:23]} 9. h3 {[%emt 0:05:36]} c5 {[%emt 0:04:39]} 10. bxc6 {[%emt 0:05:47]} bxc6 {[%emt 0:00:14]} 11. c5 {[%emt 0:00:53]} O-O {[%emt 0:03:58]} 12. Qa4 {[%emt 0:03:58]} Qc8 {[%emt 0:01:13]} 13. Bh2 {[%emt 0:02:04]} Bd8 {[%emt 0:03:27]} 14. Ne2 {[%emt 0:00:39]} Nb8 {[%emt 0:02:46]} 15. Nf4 {[%emt 0:03:00]} Bc7 {[%emt 0:01:44]} 16. Be2 {[%emt 0:00:33]} g5 {[%emt 0:01:12]} 17. Nxe6 {[%emt 0:07:58]} fxe6 {[%emt 0:00:15]} 18. Bxc7 {[%emt 0:01:26]} Qxc7 {[%emt 0:04:08]} 19. O-O {[%emt 0:00:02]} Nbd7 {[%emt 0:02:08]} 20. f3 {[%emt 0:03:13]} exf3 {[%emt 0:03:17]} 21. Bxf3 {[%emt 0:00:12]} e5 {[%emt 0:01:35]} 22. e4 {[%emt 0:01:24]} exd4 {[%emt 0:04:03]} 23. Qxd4 {[%emt 0:01:23]} Qe5 {[%emt 0:01:33]} 24. Qxe5 {[%emt 0:00:58]} Nxe5 {[%emt 0:00:07]} 25. exd5 {[%emt 0:00:16]} Nxd5 {[%emt 0:02:02]} 26. Rab1 {[%emt 0:12:14]} a4 {[%emt 0:04:04]} 27. Rb7 {[%emt 0:02:29]} Ra5 {[%emt 0:02:33]} 28. Bxd5+ {[%emt 0:03:34]} cxd5 {[%emt 0:00:09]} 29. Re1 {[%emt 0:00:08]} Ng6 {[%emt 0:03:21]} 30. Nf3 {[%emt 0:04:18]} Rxc5 {[%emt 0:13:06]} 31. Nxg5 {[%emt 0:00:05]} Rc2 {[%emt 0:02:23]} 32. Nxh7 {[%emt 0:04:30]} Rff2 {[%emt 0:00:44]} 33. Re8+ {[%emt 0:00:17]} Nf8 {[%emt 0:00:12]} 34. Rxf8+ {[%emt 0:01:26]} Rxf8 {[%emt 0:00:09]} 35. Nxf8 {[%emt 0:00:03]} Kxf8 {[%emt 0:00:09]} 36. Rb4 {[%emt 0:03:50]} Rc1+ {[%emt 0:01:18]} 37. Kf2 {[%emt 0:00:06]} Rc2+ {[%emt 0:00:07]} 38. Kf1 {[%emt 0:00:38]} Rc1+ {[%emt 0:00:18]} 39. Ke2 {[%emt 0:01:26]} Rc2+ {[%emt 0:00:07]} 40. Kf1 {[%emt 0:00:54]} Rc1+ {[%emt 0:00:28]} 41. Kf2 {[%emt 0:06:35]} Rc2+ {[%emt 0:00:12]} 42. Kf3 {[%emt 0:01:34]} Rc3+ {[%emt 0:00:14]} 43. Kf4 {[%emt 0:00:05]} Rxa3 {[%emt 0:00:20]} 44. Rd4 {[%emt 0:00:23]} Ra1 {[%emt 0:08:42]} 45. Rxd5 {[%emt 0:00:25]} a3 {[%emt 0:00:52]} 46. Ra5 {[%emt 0:00:21]} a2 {[%emt 0:04:00]} 47. Kg5 {[%emt 0:00:29]} Kf7 {[%emt 0:01:50]} 48. h4 {[%emt 0:02:11]} Rb1 {[%emt 0:04:01]} 49. Rxa2 {[%emt 0:01:01]} Rb5+ {[%emt 0:00:09]} 50. Kg4 {[%emt 0:00:10]} Rb4+ {[%emt 0:02:20]} 51. Kh3 {[%emt 0:00:11]} Kg6 {[%emt 0:00:19]} 52. Ra5 {[%emt 0:00:17]} Kh6 {[%emt 0:00:31]} 53. Ra6+ {[%emt 0:00:16]} Kg7 {[%emt 0:00:20]} 54. Ra3 {[%emt 0:01:05]} Kh6 {[%emt 0:00:24]} 55. g4 {[%emt 0:01:12]} Kg6 {[%emt 0:01:34]} 56. Kg3 {[%emt 0:00:55]} Kh6 {[%emt 0:00:13]} 57. Ra6+ {[%emt 0:00:32]} Kg7 {[%emt 0:00:09]} 58. g5 {[%emt 0:00:32]} Kh7 {[%emt 0:00:57]} 59. Rf6 {[%emt 0:00:17]} Kg7 {[%emt 0:00:32]} 60. Rf4 {[%emt 0:00:10]} Rb1 {[%emt 0:00:33]} 61. Kg4 {[%emt 0:00:35]} Rb5 {[%emt 0:01:09]} 62. Ra4 {[%emt 0:00:47]} Kg6 {[%emt 0:00:35]} 63. Ra6+ {[%emt 0:00:10]} Kg7 {[%emt 0:00:06]} 64. Ra7+ {[%emt 0:00:25]} Kg8 {[%emt 0:00:13]} 65. Kh5 {[%emt 0:00:51]} Rb6 {[%emt 0:02:57]} 66. g6 {[%emt 0:03:23]} Rb4 {[%emt 0:01:02]} 67. Kg5 {[%emt 0:00:17]} Rb5+ {[%emt 0:00:35]} 68. Kh6 {[%emt 0:00:10]} Rb8 {[%emt 0:00:05]} 69. h5 {[%emt 0:00:17]} Rc8 {[%emt 0:00:32]} 70. Rg7+ {[%emt 0:00:16]} Kh8 {[%emt 0:00:18]} 71. Re7 {[%emt 0:00:34]} Kg8 {[%emt 0:00:42]} 72. Kg5 {[%emt 0:00:26]} Rc5+ {[%emt 0:00:53]} 73. Kf6 {[%emt 0:00:24]} Rc6+ {[%emt 0:00:02]} 74. Re6 {[%emt 0:00:28]} Rc8 {[%emt 0:00:08]} 75. h6 {[%emt 0:01:26]} Rf8+ {[%emt 0:00:41]} 76. Kg5 {[%emt 0:00:17]} Ra8 {[%emt 0:00:23]} 77. h7+ {[%emt 0:01:11]} 1-0

[Event "105th British-ch 2018"]
[Site "Hull"]
[Date "2018.08.03"]
[Round "4"]
[White "Muir, Andrew J"]
[Black "Moore, Graham J"]
[Result "0-1"]
[ECO "D36"]
[WhiteElo "2291"]
[BlackElo "2218"]
[Annotator "ChessBase"]
[PlyCount "82"]
[EventDate "2018.07.28"]
[EventType "swiss"]
[EventCountry "GBR"]
[SourceTitle "playchess.com"]
[Source "ChessBase"]
[SourceQuality "1"]
[TimeControl "40/5400+30:1800+30"]

1. d4 {[%emt 0:00:00]} d5 {[%emt 0:00:00]} 2. c4 {[%emt 0:00:13]} e6 {[%emt 0:00:00]} 3. Nc3 {[%emt 0:00:37]} Nf6 {[%emt 0:00:01]} 4. cxd5 {[%emt 0:00:43]} exd5 {[%emt 0:00:18]} 5. Bg5 {[%emt 0:00:11]} c6 {[%emt 0:00:32]} 6. e3 {[%emt 0:01:05]} Be7 {[%emt 0:00:10]} 7. Bd3 {[%emt 0:00:36]} Nbd7 {[%emt 0:00:17]} 8. Qc2 {[%emt 0:02:20]} h6 {[%emt 0:01:11]} 9. Bh4 {[%emt 0:00:45]} Nh5 {[%emt 0:00:31]} 10. Bxe7 {[%emt 0:00:49]} Qxe7 {[%emt 0:00:10]} 11. Nge2 {[%emt 0:00:18]} Nb6 {[%emt 0:00:32]} 12. h3 {[%emt 0:02:08]} Bd7 {[%emt 0:01:17]} 13. O-O-O {[%emt 0:04:57]} O-O-O {[%emt 0:00:16]} 14. Kb1 {[%emt 0:06:16]} Kb8 {[%emt 0:00:49]} 15. g4 {[%emt 0:02:23]} Nf6 {[%emt 0:00:31]} 16. Ng3 {[%emt 0:00:16]} g6 {[%emt 0:00:18]} 17. Rde1 {[%emt 0:11:55]} Qd6 {[%emt 0:20:21]} 18. Rhg1 {[%emt 0:02:44]} h5 {[%emt 0:02:14]} 19. f3 {[%emt 0:07:11]} Rc8 {[%emt 0:10:34]} 20. Qf2 {[%emt 0:04:20]} c5 {[%emt 0:05:38]} 21. dxc5 {[%emt 0:02:05]} Qxc5 {[%emt 0:04:04]} 22. Rc1 {[%emt 0:02:23]} Qb4 {[%emt 0:04:27]} 23. a3 {[%emt 0:01:40]} Qb3 {[%emt 0:07:01]} 24. Qc2 {[%emt 0:04:12]} Qxc2+ {[%emt 0:05:00]} 25. Rxc2 {[%emt 0:00:05]} hxg4 {[%emt 0:01:14]} 26. hxg4 {[%emt 0:00:30]} Bc6 {[%emt 0:04:53]} 27. Nb5 {[%emt 0:28:29]} Nfd7 {[%emt 0:09:03]} 28. Nd6 {[%emt 0:02:21]} Rcf8 {[%emt 0:00:57]} 29. f4 {[%emt 0:00:46]} Rh4 {[%emt 0:02:22]} 30. g5 {[%emt 0:00:50]} a6 {[%emt 0:01:28]} 31. Nxf7 {[%emt 0:03:27]} Rxf7 {[%emt 0:00:11]} 32. Bxg6 {[%emt 0:00:02]} Rf8 {[%emt 0:00:20]} 33. Nf5 {[%emt 0:02:13]} Rh3 {[%emt 0:00:15]} 34. Re1 {[%emt 0:01:15]} Nc4 {[%emt 0:07:28]} 35. e4 {[%emt 0:02:12]} Ba4 {[%emt 0:00:39]} 36. Rf2 {[%emt 0:02:01]} dxe4 {[%emt 0:01:26]} 37. Rxe4 {[%emt 0:00:36]} Rh1+ {[%emt 0:00:46]} 38. Ka2 {[%emt 0:00:05]} Nc5 {[%emt 0:00:39]} 39. Nd4 {[%emt 0:00:47]} Rd8 {[%emt 0:02:07]} 40. b3 {[%emt 0:02:48]} Rxd4 {[%emt 0:00:35]} 41. bxa4 {[%emt 0:30:51]} Nxe4 {[%emt 0:30:28]} 0-1

[Event "105th British-ch 2018"]
[Site "Hull"]
[Date "2018.08.03"]
[Round "4"]
[White "Abdulla, Murad"]
[Black "Price, Gwilym"]
[Result "1-0"]
[ECO "B40"]
[WhiteElo "2281"]
[BlackElo "2085"]
[Annotator "ChessBase"]
[PlyCount "75"]
[EventDate "2018.07.28"]
[EventType "swiss"]
[EventCountry "GBR"]
[SourceTitle "playchess.com"]
[Source "ChessBase"]
[SourceQuality "1"]
[TimeControl "40/5400+30:1800+30"]

1. e4 {[%emt 0:00:58]} c5 {[%emt 0:00:00]} 2. Nf3 {[%emt 0:00:12]} e6 {[%emt 0:00:00]} 3. g3 {[%emt 0:00:44]} Nc6 {[%emt 0:00:00]} 4. Bg2 {[%emt 0:00:36]} Nf6 {[%emt 0:00:29]} 5. Qe2 {[%emt 0:00:44]} d6 {[%emt 0:01:19]} 6. O-O {[%emt 0:00:45]} g6 {[%emt 0:01:45]} 7. c3 {[%emt 0:05:48]} e5 {[%emt 0:01:17]} 8. a4 {[%emt 0:03:01]} Bg7 {[%emt 0:01:35]} 9. Na3 {[%emt 0:01:59]} O-O {[%emt 0:02:42]} 10. d3 {[%emt 0:02:00]} Ne8 {[%emt 0:06:08]} 11. Ne1 {[%emt 0:03:31]} Nc7 {[%emt 0:06:09]} 12. Nec2 {[%emt 0:09:16]} a6 {[%emt 0:09:22]} 13. Nc4 {[%emt 0:03:09]} b5 {[%emt 0:02:39]} 14. Nb6 {[%emt 0:01:20]} Rb8 {[%emt 0:00:25]} 15. Nxc8 {[%emt 0:01:24]} Qxc8 {[%emt 0:00:20]} 16. Ne3 {[%emt 0:02:43]} Na5 {[%emt 0:07:27]} 17. Qd1 {[%emt 0:03:50]} bxa4 {[%emt 0:01:22]} 18. Rxa4 {[%emt 0:07:31]} Nb3 {[%emt 0:00:36]} 19. Nc4 {[%emt 0:00:27]} Qd7 {[%emt 0:02:50]} 20. Ra3 {[%emt 0:00:56]} Nxc1 {[%emt 0:00:13]} 21. Qxc1 {[%emt 0:00:03]} f5 {[%emt 0:09:54]} 22. Bh3 {[%emt 0:10:18]} Qe7 {[%emt 0:03:29]} 23. Qc2 {[%emt 0:00:53]} f4 {[%emt 0:04:13]} 24. Ra5 {[%emt 0:08:35]} Rb5 {[%emt 0:04:02]} 25. Qa4 {[%emt 0:04:57]} Rfb8 {[%emt 0:00:48]} 26. Ra1 {[%emt 0:02:53]} h5 {[%emt 0:03:08]} 27. Qd1 {[%emt 0:02:16]} Rf8 {[%emt 0:07:42]} 28. Rxb5 {[%emt 0:03:32]} axb5 {[%emt 0:00:29]} 29. Nb6 {[%emt 0:00:21]} fxg3 {[%emt 0:02:30]} 30. hxg3 {[%emt 0:02:35]} Qf7 {[%emt 0:02:45]} 31. Qc2 {[%emt 0:01:48]} Rb8 {[%emt 0:01:25]} 32. Nc8 {[%emt 0:01:28]} Qf8 {[%emt 0:00:38]} 33. Qb3+ {[%emt 0:02:43]} Kh7 {[%emt 0:01:29]} 34. Ra7 {[%emt 0:01:12]} c4 {[%emt 0:07:14]} 35. dxc4 {[%emt 0:01:19]} Rxc8 {[%emt 0:00:23]} 36. Bxc8 {[%emt 0:01:38]} Qxc8 {[%emt 0:00:46]} 37. cxb5 {[%emt 0:00:38]} h4 {[%emt 0:01:19]} 38. Qc4 {[%emt 0:00:47]} 1-0

[Event "105th British-ch 2018"]
[Site "Hull"]
[Date "2018.08.03"]
[Round "4"]
[White "Kalavannan, Koby"]
[Black "Macklin, Paul"]
[Result "1/2-1/2"]
[ECO "E73"]
[WhiteElo "2277"]
[BlackElo "2363"]
[Annotator "ChessBase"]
[PlyCount "34"]
[EventDate "2018.07.28"]
[EventType "swiss"]
[EventCountry "GBR"]
[SourceTitle "playchess.com"]
[Source "ChessBase"]
[SourceQuality "1"]
[TimeControl "40/5400+30:1800+30"]

1. d4 {[%emt 0:02:35]} Nf6 {[%emt 0:00:02]} 2. c4 {[%emt 0:00:07]} g6 {[%emt 0:00:06]} 3. Nc3 {[%emt 0:00:09]} Bg7 {[%emt 0:00:11]} 4. e4 {[%emt 0:00:10]} d6 {[%emt 0:00:07]} 5. Be2 {[%emt 0:00:07]} O-O {[%emt 0:00:18]} 6. Be3 {[%emt 0:00:02]} Nc6 {[%emt 0:04:50]} 7. d5 {[%emt 0:05:30]} Ne5 {[%emt 0:01:58]} 8. h3 {[%emt 0:06:33]} e6 {[%emt 0:02:39]} 9. Nf3 {[%emt 0:10:49]} Nxf3+ {[%emt 0:02:26]} 10. Bxf3 {[%emt 0:00:02]} Nd7 {[%emt 0:00:29]} 11. Qd2 {[%emt 0:05:00]} a5 {[%emt 0:11:02]} 12. Rc1 {[%emt 0:23:15]} e5 {[%emt 0:16:37]} 13. g4 {[%emt 0:08:07]} Nc5 {[%emt 0:01:07]} 14. Ke2 {[%emt 0:03:46]} c6 {[%emt 0:07:45]} 15. Rcd1 {[%emt 0:13:16]} cxd5 {[%emt 0:06:52]} 16. Bxc5 {[%emt 0:01:50]} dxc5 {[%emt 0:00:56]} 17. Qxd5 {[%emt 0:00:16]} Qe7 {[%emt 0:14:49]} 1/2-1/2